[Event "Hungarian Rapid-ch 2022"]
[Site "Ajka"]
[Date "2022.07.15"]
[Round "4.3"]
[White "Hera, Imre Jr."]
[Black "Kantor, Gergely"]
[Result "1-0"]
[ECO "A20"]
[WhiteElo "2568"]
[BlackElo "2582"]
[Annotator "ChessBase"]
[PlyCount "95"]
[EventDate "2022.07.15"]
[EventType "swiss"]
[EventCountry "HUN"]
[SourceTitle "playchess.com"]
[Source "ChessBase"]
[SourceQuality "1"]
[TimeControl "900+10"]

1. c4 {[%emt 0:00:12]} e5 {[%emt 0:00:13]} 2. g3 {[%emt 0:00:09]} Nf6 {[%emt 0:00:02]} 3. Bg2 {[%emt 0:00:01]} Nc6 {[%emt 0:00:10]} 4. Nc3 {[%emt 0:00:06]} Bb4 {[%emt 0:00:17]} 5. e4 {[%emt 0:00:13]} d6 {[%emt 0:00:19]} 6. Nge2 {[%emt 0:00:02]} a5 {[%emt 0:00:31]} 7. O-O {[%emt 0:00:05]} Bc5 {[%emt 0:00:01]} 8. d3 {[%emt 0:00:09]} O-O {[%emt 0:00:52]} 9. h3 {[%emt 0:00:07]} Nd4 {[%emt 0:01:48]} 10. Kh2 {[%emt 0:00:07]} c6 {[%emt 0:00:06]} 11. f4 {[%emt 0:00:06]} h6 {[%emt 0:00:22]} 12. Nxd4 {[%emt 0:01:23]} Bxd4 {[%emt 0:00:12]} 13. Qf3 {[%emt 0:00:14]} Rb8 {[%emt 0:01:43]} 14. Ne2 {[%emt 0:00:57]} Bc5 {[%emt 0:00:35]} 15. fxe5 {[%emt 0:00:32]} dxe5 {[%emt 0:00:21]} 16. Bxh6 {[%emt 0:00:02]} gxh6 {[%emt 0:00:20]} 17. Qxf6 {[%emt 0:00:03]} Qxf6 {[%emt 0:00:17]} 18. Rxf6 {[%emt 0:00:03]} Rd8 {[%emt 0:01:20]} 19. Rf3 {[%emt 0:00:27]} Be6 {[%emt 0:00:37]} 20. g4 {[%emt 0:00:32]} b5 {[%emt 0:00:15]} 21. cxb5 {[%emt 0:00:58]} cxb5 {[%emt 0:00:48]} 22. a3 {[%emt 0:01:14]} b4 {[%emt 0:02:07]} 23. axb4 {[%emt 0:00:08]} axb4 {[%emt 0:00:01]} 24. Ng3 {[%emt 0:05:56]} Bd4 {[%emt 0:01:49]} 25. Rb1 {[%emt 0:00:20]} Ba2 {[%emt 0:00:31]} 26. Rbf1 {[%emt 0:00:01]} b3 {[%emt 0:01:23]} 27. Nf5 {[%emt 0:00:07]} Bxb2 {[%emt 0:01:34]} 28. Nxh6+ {[%emt 0:00:37]} Kf8 {[%emt 0:00:46]} 29. Nxf7 {[%emt 0:00:23]} Ke7 {[%emt 0:00:05]} 30. Nxd8 {[%emt 0:00:12]} Rxd8 {[%emt 0:00:02]} 31. Rf7+ {[%emt 0:00:41]} Kd6 {[%emt 0:00:01]} 32. R1f6+ {[%emt 0:01:00]} Kc5 {[%emt 0:00:05]} 33. Rc7+ {[%emt 0:00:04]} Kd4 {[%emt 0:00:12]} 34. Bf3 {[%emt 0:01:53]} Bc3 {[%emt 0:00:36]} 35. Bd1 {[%emt 0:00:08]} b2 {[%emt 0:00:15]} 36. Bc2 {[%emt 0:00:02]} b1=Q {[%emt 0:00:08]} 37. Bxb1 {[%emt 0:00:01]} Bxb1 {[%emt 0:00:01]} 38. g5 {[%emt 0:00:18]} Bxd3 {[%emt 0:00:07]} 39. g6 {[%emt 0:00:01]} Bxe4 {[%emt 0:00:21]} 40. g7 {[%emt 0:00:15]} Ra8 {[%emt 0:00:16]} 41. Rd6+ {[%emt 0:00:54]} Bd5 {[%emt 0:00:05]} 42. Rcd7 {[%emt 0:00:08]} Ra2+ {[%emt 0:00:10]} 43. Kg3 {[%emt 0:00:23]} Rg2+ {[%emt 0:00:10]} 44. Kh4 {[%emt 0:00:01]} Ke3 {[%emt 0:00:16]} 45. Rxd5 {[%emt 0:00:05]} e4 {[%emt 0:00:00]} 46. Rg5 {[%emt 0:00:11]} Bf6 {[%emt 0:00:21]} 47. g8=Q {[%emt 0:00:11]} Kf4 {[%emt 0:00:16]} 48. Rf7 {[%emt 0:00:07]} 1-0

[Event "Hungarian Rapid-ch 2022"]
[Site "Ajka"]
[Date "2022.07.15"]
[Round "4.4"]
[White "Korpa, Bence"]
[Black "Horvath, Csaba"]
[Result "1-0"]
[ECO "A45"]
[WhiteElo "2537"]
[BlackElo "2506"]
[Annotator "ChessBase"]
[PlyCount "55"]
[EventDate "2022.07.15"]
[EventType "swiss"]
[EventCountry "HUN"]
[SourceTitle "playchess.com"]
[Source "ChessBase"]
[SourceQuality "1"]
[TimeControl "900+10"]

1. d4 {[%emt 0:00:13]} Nf6 {[%emt 0:00:11]} 2. Nc3 {[%emt 0:00:02]} d5 {[%emt 0:00:14]} 3. Bf4 {[%emt 0:00:04]} a6 {[%emt 0:00:04]} 4. e3 {[%emt 0:00:04]} e6 {[%emt 0:00:08]} 5. g4 {[%emt 0:00:46]} b5 {[%emt 0:00:31]} 6. g5 {[%emt 0:00:08]} Nfd7 {[%emt 0:00:02]} 7. Qg4 {[%emt 0:00:21]} c5 {[%emt 0:00:59]} 8. Nf3 {[%emt 0:00:27]} Nc6 {[%emt 0:00:14]} 9. Qg3 {[%emt 0:00:05]} Bb7 {[%emt 0:00:19]} 10. Bc7 {[%emt 0:01:21]} Qc8 {[%emt 0:00:12]} 11. h4 {[%emt 0:00:19]} Be7 {[%emt 0:02:06]} 12. Bh3 {[%emt 0:00:37]} Bd8 {[%emt 0:00:49]} 13. Bd6 {[%emt 0:00:25]} Be7 {[%emt 0:01:16]} 14. dxc5 {[%emt 0:01:01]} O-O {[%emt 0:02:28]} 15. g6 {[%emt 0:02:00]} hxg6 {[%emt 0:01:31]} 16. h5 {[%emt 0:00:03]} gxh5 {[%emt 0:01:02]} 17. Ng5 {[%emt 0:04:12]} Bxd6 {[%emt 0:01:24]} 18. cxd6 {[%emt 0:00:07]} d4 {[%emt 0:01:19]} 19. Nxe6 {[%emt 0:03:29]} g6 {[%emt 0:00:12]} 20. Nd5 {[%emt 0:00:30]} Nce5 {[%emt 0:00:11]} 21. Ne7+ {[%emt 0:00:05]} Kh7 {[%emt 0:00:01]} 22. Ng5+ {[%emt 0:00:21]} Kg7 {[%emt 0:00:15]} 23. Nxc8 {[%emt 0:00:03]} Rfxc8 {[%emt 0:00:27]} 24. exd4 {[%emt 0:00:16]} Bxh1 {[%emt 0:00:41]} 25. dxe5 {[%emt 0:00:03]} Bc6 {[%emt 0:00:58]} 26. e6 {[%emt 0:00:35]} fxe6 {[%emt 0:00:29]} 27. Nxe6+ {[%emt 0:00:03]} Kh7 {[%emt 0:00:13]} 28. Qc3 {[%emt 0:00:11]} 1-0

[Event "Hungarian Rapid-ch 2022"]
[Site "Ajka"]
[Date "2022.07.15"]
[Round "4.5"]
[White "Prohaszka, Peter"]
[Black "Csonka, Balazs"]
[Result "1-0"]
[ECO "A06"]
[WhiteElo "2570"]
[BlackElo "2495"]
[Annotator "ChessBase"]
[PlyCount "111"]
[EventDate "2022.07.15"]
[EventType "swiss"]
[EventCountry "HUN"]
[SourceTitle "playchess.com"]
[Source "ChessBase"]
[SourceQuality "1"]
[TimeControl "900+10"]

1. Nf3 {[%emt 0:00:13]} d5 {[%emt 0:00:14]} 2. e3 {[%emt 0:00:01]} Nf6 {[%emt 0:00:06]} 3. b3 {[%emt 0:00:18]} c5 {[%emt 0:00:14]} 4. Bb2 {[%emt 0:00:02]} e6 {[%emt 0:00:03]} 5. c4 {[%emt 0:00:41]} Nc6 {[%emt 0:00:06]} 6. cxd5 {[%emt 0:00:01]} exd5 {[%emt 0:00:02]} 7. Be2 {[%emt 0:00:01]} d4 {[%emt 0:00:58]} 8. exd4 {[%emt 0:01:02]} cxd4 {[%emt 0:00:09]} 9. Bb5 {[%emt 0:00:02]} Bc5 {[%emt 0:00:13]} 10. Qe2+ {[%emt 0:00:03]} Be6 {[%emt 0:01:37]} 11. Qe5 {[%emt 0:00:02]} Qd5 {[%emt 0:05:20]} 12. O-O {[%emt 0:03:03]} O-O-O {[%emt 0:04:14]} 13. Bxc6 {[%emt 0:02:08]} bxc6 {[%emt 0:00:02]} 14. Rc1 {[%emt 0:00:41]} Qxe5 {[%emt 0:01:27]} 15. Nxe5 {[%emt 0:00:01]} Rd5 {[%emt 0:00:02]} 16. Nxc6 {[%emt 0:04:58]} Kd7 {[%emt 0:00:28]} 17. Na5 {[%emt 0:00:03]} Ng4 {[%emt 0:00:59]} 18. Nc4 {[%emt 0:00:44]} Rf5 {[%emt 0:00:15]} 19. Ba3 {[%emt 0:02:57]} Rc8 {[%emt 0:00:25]} 20. f3 {[%emt 0:00:39]} Ne5 {[%emt 0:00:50]} 21. Bxc5 {[%emt 0:00:23]} Rxc5 {[%emt 0:00:02]} 22. Nxe5+ {[%emt 0:00:05]} Rfxe5 {[%emt 0:00:03]} 23. Rxc5 {[%emt 0:00:12]} Rxc5 {[%emt 0:00:03]} 24. Na3 {[%emt 0:00:00]} Bf5 {[%emt 0:00:42]} 25. Kf2 {[%emt 0:00:04]} Bd3 {[%emt 0:00:04]} 26. Nc4 {[%emt 0:00:07]} Kc6 {[%emt 0:00:37]} 27. Re1 {[%emt 0:00:21]} Bxc4 {[%emt 0:00:13]} 28. bxc4 {[%emt 0:00:01]} Rxc4 {[%emt 0:00:08]} 29. Re7 {[%emt 0:00:03]} Rc2 {[%emt 0:00:11]} 30. Ke2 {[%emt 0:00:04]} Rxa2 {[%emt 0:00:05]} 31. Rxf7 {[%emt 0:00:02]} g5 {[%emt 0:00:10]} 32. Kd3 {[%emt 0:00:21]} h5 {[%emt 0:00:06]} 33. Rg7 {[%emt 0:00:14]} Ra5 {[%emt 0:00:16]} 34. Rg6+ {[%emt 0:00:27]} Kd7 {[%emt 0:00:01]} 35. Kxd4 {[%emt 0:00:04]} Ke7 {[%emt 0:00:16]} 36. g3 {[%emt 0:00:28]} Kf7 {[%emt 0:00:14]} 37. Rh6 {[%emt 0:00:03]} h4 {[%emt 0:00:13]} 38. gxh4 {[%emt 0:00:10]} gxh4 {[%emt 0:00:01]} 39. Ke4 {[%emt 0:00:18]} Kg7 {[%emt 0:00:11]} 40. Rxh4 {[%emt 0:00:02]} Ra2 {[%emt 0:00:15]} 41. d4 {[%emt 0:00:06]} a5 {[%emt 0:00:01]} 42. Rh5 {[%emt 0:00:17]} Kg6 {[%emt 0:00:22]} 43. Rc5 {[%emt 0:00:05]} Rxh2 {[%emt 0:00:02]} 44. Rxa5 {[%emt 0:00:08]} Rh4+ {[%emt 0:00:01]} 45. f4 {[%emt 0:00:02]} Kf6 {[%emt 0:00:07]} 46. Ra6+ {[%emt 0:00:03]} Ke7 {[%emt 0:00:02]} 47. Ke5 {[%emt 0:00:02]} Rh1 {[%emt 0:00:16]} 48. Ra7+ {[%emt 0:00:01]} Ke8 {[%emt 0:00:02]} 49. f5 {[%emt 0:00:21]} Re1+ {[%emt 0:00:10]} 50. Kf6 {[%emt 0:00:04]} Rd1 {[%emt 0:00:02]} 51. Ra8+ {[%emt 0:00:16]} Kd7 {[%emt 0:00:01]} 52. Kf7 {[%emt 0:00:28]} Rxd4 {[%emt 0:00:02]} 53. f6 {[%emt 0:00:11]} Rd1 {[%emt 0:00:34]} 54. Ra2 {[%emt 0:00:11]} Kd6 {[%emt 0:00:10]} 55. Rg2 {[%emt 0:00:12]} Ke5 {[%emt 0:00:34]} 56. Kg7 {[%emt 0:00:11]} 1-0

[Event "Hungarian Rapid-ch 2022"]
[Site "Ajka"]
[Date "2022.07.15"]
[Round "4.6"]
[White "Antal, Gergely"]
[Black "Papp, Levente"]
[Result "1/2-1/2"]
[ECO "C04"]
[WhiteElo "2571"]
[BlackElo "2394"]
[Annotator "ChessBase"]
[PlyCount "172"]
[EventDate "2022.07.15"]
[EventType "swiss"]
[EventCountry "HUN"]
[SourceTitle "playchess.com"]
[Source "ChessBase"]
[SourceQuality "1"]
[TimeControl "900+10"]

1. e4 {[%emt 0:00:13]} e6 {[%emt 0:00:14]} 2. d4 {[%emt 0:00:01]} d5 {[%emt 0:00:02]} 3. Nd2 {[%emt 0:00:01]} Nc6 {[%emt 0:00:22]} 4. Ngf3 {[%emt 0:00:48]} Nf6 {[%emt 0:00:02]} 5. e5 {[%emt 0:00:10]} Nd7 {[%emt 0:00:01]} 6. Bd3 {[%emt 0:00:02]} Nb4 {[%emt 0:00:31]} 7. Be2 {[%emt 0:00:02]} c5 {[%emt 0:00:01]} 8. c3 {[%emt 0:00:01]} Nc6 {[%emt 0:00:01]} 9. O-O {[%emt 0:00:33]} f6 {[%emt 0:00:45]} 10. exf6 {[%emt 0:04:30]} Qxf6 {[%emt 0:00:32]} 11. Re1 {[%emt 0:00:25]} Bd6 {[%emt 0:00:56]} 12. Nf1 {[%emt 0:00:01]} O-O {[%emt 0:00:20]} 13. Bg5 {[%emt 0:00:26]} Qf7 {[%emt 0:00:19]} 14. Bh4 {[%emt 0:00:03]} Nf6 {[%emt 0:03:28]} 15. Bd3 {[%emt 0:01:21]} Qc7 {[%emt 0:01:19]} 16. Bg3 {[%emt 0:00:34]} Bd7 {[%emt 0:00:56]} 17. Ne5 {[%emt 0:02:19]} Rae8 {[%emt 0:03:01]} 18. Rc1 {[%emt 0:00:33]} Re7 {[%emt 0:01:14]} 19. Bb1 {[%emt 0:00:23]} Be8 {[%emt 0:00:11]} 20. Kh1 {[%emt 0:01:29]} Bh5 {[%emt 0:00:41]} 21. f3 {[%emt 0:00:01]} Bxe5 {[%emt 0:01:41]} 22. dxe5 {[%emt 0:00:09]} Nd7 {[%emt 0:00:15]} 23. Qe2 {[%emt 0:01:07]} Ref7 {[%emt 0:00:04]} 24. Nd2 {[%emt 0:00:09]} b5 {[%emt 0:00:48]} 25. b3 {[%emt 0:00:27]} a6 {[%emt 0:00:05]} 26. Qe3 {[%emt 0:00:17]} Ne7 {[%emt 0:00:08]} 27. c4 {[%emt 0:00:29]} bxc4 {[%emt 0:01:03]} 28. bxc4 {[%emt 0:00:01]} d4 {[%emt 0:00:05]} 29. Qa3 {[%emt 0:00:00]} Qb6 {[%emt 0:00:30]} 30. Be4 {[%emt 0:00:02]} Nc6 {[%emt 0:00:06]} 31. Rb1 {[%emt 0:00:24]} Nb4 {[%emt 0:00:01]} 32. Qb3 {[%emt 0:00:01]} Qc7 {[%emt 0:00:10]} 33. a3 {[%emt 0:00:51]} Nc6 {[%emt 0:00:01]} 34. Qa4 {[%emt 0:00:01]} Ndb8 {[%emt 0:00:37]} 35. Rb2 {[%emt 0:00:24]} Bg6 {[%emt 0:00:08]} 36. Bxg6 {[%emt 0:00:07]} hxg6 {[%emt 0:00:01]} 37. Ne4 {[%emt 0:00:02]} Qa5 {[%emt 0:00:10]} 38. Qxa5 {[%emt 0:00:15]} Nxa5 {[%emt 0:00:01]} 39. Nxc5 {[%emt 0:00:04]} Rc8 {[%emt 0:00:28]} 40. Nxe6 {[%emt 0:00:06]} Nxc4 {[%emt 0:00:09]} 41. Rb3 {[%emt 0:00:26]} Nc6 {[%emt 0:00:03]} 42. h4 {[%emt 0:01:06]} Rd7 {[%emt 0:00:17]} 43. Nc5 {[%emt 0:00:06]} Rd5 {[%emt 0:00:01]} 44. Nd3 {[%emt 0:00:01]} Ne3 {[%emt 0:00:09]} 45. Rc1 {[%emt 0:00:15]} Rb5 {[%emt 0:00:16]} 46. Rxb5 {[%emt 0:00:16]} axb5 {[%emt 0:00:01]} 47. Bf2 {[%emt 0:00:47]} Nc4 {[%emt 0:00:02]} 48. a4 {[%emt 0:00:10]} Rd8 {[%emt 0:00:31]} 49. axb5 N6xe5 {[%emt 0:00:00]} 50. Nxe5 {[%emt 0:00:11]} Nxe5 {[%emt 0:00:01]} 51. Bg3 {[%emt 0:00:01]} Nd7 {[%emt 0:00:18]} 52. Rc6 {[%emt 0:00:43]} Nf6 {[%emt 0:00:01]} 53. Rd6 {[%emt 0:00:41]} Rxd6 {[%emt 0:00:14]} 54. Bxd6 {[%emt 0:00:01]} Nd5 {[%emt 0:00:02]} 55. Kg1 {[%emt 0:00:15]} d3 {[%emt 0:00:04]} 56. Kf2 {[%emt 0:00:01]} Nc3 {[%emt 0:00:09]} 57. Ke3 {[%emt 0:00:24]} Nxb5 {[%emt 0:00:05]} 58. Bg3 {[%emt 0:00:05]} d2 {[%emt 0:00:10]} 59. Kxd2 {[%emt 0:00:02]} Nd4 {[%emt 0:00:01]} 60. Bf2 {[%emt 0:00:02]} Ne6 {[%emt 0:00:13]} 61. Ke3 {[%emt 0:00:02]} g5 {[%emt 0:00:10]} 62. h5 {[%emt 0:00:09]} g6 {[%emt 0:00:01]} 63. hxg6 {[%emt 0:00:20]} Kg7 {[%emt 0:00:01]} 64. g4 {[%emt 0:00:07]} Kxg6 {[%emt 0:00:02]} 65. Ke4 {[%emt 0:00:00]} Nf4 {[%emt 0:00:37]} 66. Be3 {[%emt 0:00:04]} Ne6 {[%emt 0:00:27]} 67. Ke5 {[%emt 0:00:09]} Nd8 {[%emt 0:00:04]} 68. Kd6 {[%emt 0:00:09]} Nf7+ {[%emt 0:00:03]} 69. Ke6 {[%emt 0:00:03]} Nd8+ {[%emt 0:00:01]} 70. Ke7 {[%emt 0:00:06]} Nc6+ {[%emt 0:00:01]} 71. Kd6 {[%emt 0:00:01]} Nd8 {[%emt 0:00:01]} 72. Bb6 {[%emt 0:00:11]} Nf7+ {[%emt 0:00:03]} 73. Ke6 {[%emt 0:00:01]} Nh6 {[%emt 0:00:12]} 74. Bc5 {[%emt 0:00:17]} Nf7 {[%emt 0:00:13]} 75. Be7 {[%emt 0:00:02]} Nh6 {[%emt 0:00:10]} 76. Bb4 {[%emt 0:00:22]} Nf7 {[%emt 0:00:01]} 77. Ba5 {[%emt 0:00:02]} Nh6 {[%emt 0:00:03]} 78. Bc3 {[%emt 0:00:03]} Nf7 {[%emt 0:00:01]} 79. Ke7 {[%emt 0:00:42]} Nh6 {[%emt 0:00:03]} 80. Bd2 {[%emt 0:00:07]} Nf7 {[%emt 0:00:06]} 81. Bxg5 {[%emt 0:00:04]} Nxg5 {[%emt 0:00:09]} 82. f4 {[%emt 0:00:01]} Ne4 {[%emt 0:00:17]} 83. Ke6 {[%emt 0:00:01]} Nf6 {[%emt 0:00:07]} 84. g5 {[%emt 0:00:06]} Nh7 {[%emt 0:00:01]} 85. f5+ {[%emt 0:00:05]} Kxg5 {[%emt 0:00:02]} 86. f6 {[%emt 0:00:01]} Nxf6 {[%emt 0:00:01]} 1/2-1/2

[Event "Hungarian Rapid-ch 2022"]
[Site "Ajka"]
[Date "2022.07.15"]
[Round "4.7"]
[White "Gledura, Benjamin"]
[Black "Straubinger, Daniel"]
[Result "1-0"]
[ECO "A06"]
[WhiteElo "2637"]
[BlackElo "2349"]
[Annotator "ChessBase"]
[PlyCount "82"]
[EventDate "2022.07.15"]
[EventType "swiss"]
[EventCountry "HUN"]
[SourceTitle "playchess.com"]
[Source "ChessBase"]
[SourceQuality "1"]
[TimeControl "900+10"]

1. Nf3 {[%emt 0:00:13]} d5 {[%emt 0:00:12]} 2. g3 {[%emt 0:00:07]} Nf6 {[%emt 0:00:10]} 3. Bg2 {[%emt 0:00:04]} c6 {[%emt 0:00:02]} 4. O-O {[%emt 0:00:06]} Bf5 {[%emt 0:00:08]} 5. d3 {[%emt 0:00:06]} Nbd7 {[%emt 0:00:54]} 6. Nh4 {[%emt 0:00:22]} Bg4 {[%emt 0:00:28]} 7. h3 {[%emt 0:00:10]} Bh5 {[%emt 0:00:02]} 8. g4 {[%emt 0:00:39]} Bg6 {[%emt 0:00:02]} 9. f4 {[%emt 0:00:13]} e6 {[%emt 0:00:05]} 10. Qe1 {[%emt 0:00:08]} Be7 {[%emt 0:00:31]} 11. e3 {[%emt 0:02:20]} Qb6 {[%emt 0:01:00]} 12. Nd2 {[%emt 0:00:29]} Nf8 {[%emt 0:02:37]} 13. Nb3 {[%emt 0:01:58]} h5 {[%emt 0:00:23]} 14. g5 {[%emt 0:00:02]} N6d7 {[%emt 0:00:06]} 15. Bd2 {[%emt 0:01:10]} f6 {[%emt 0:01:00]} 16. Ba5 {[%emt 0:00:12]} Qa6 {[%emt 0:00:08]} 17. Bb4 {[%emt 0:01:14]} c5 {[%emt 0:01:57]} 18. Bc3 {[%emt 0:00:02]} Bf7 {[%emt 0:00:36]} 19. Qg3 {[%emt 0:00:04]} O-O-O {[%emt 0:00:22]} 20. e4 {[%emt 0:01:06]} d4 {[%emt 0:01:58]} 21. Ba5 {[%emt 0:01:13]} b6 {[%emt 0:00:19]} 22. Bd2 {[%emt 0:00:11]} Bd6 {[%emt 0:01:41]} 23. e5 {[%emt 0:00:05]} Bc7 {[%emt 0:00:27]} 24. Qf3 {[%emt 0:00:36]} Ng6 {[%emt 0:00:35]} 25. Nxg6 {[%emt 0:00:08]} Bxg6 {[%emt 0:00:04]} 26. a4 {[%emt 0:00:34]} fxe5 {[%emt 0:01:07]} 27. Qa8+ {[%emt 0:00:36]} Nb8 {[%emt 0:00:23]} 28. a5 {[%emt 0:00:08]} e4 {[%emt 0:00:30]} 29. axb6 {[%emt 0:00:28]} Qxb6 {[%emt 0:00:03]} 30. Rxa7 {[%emt 0:01:02]} Qc6 {[%emt 0:00:59]} 31. Qxc6 {[%emt 0:00:34]} Nxc6 {[%emt 0:00:02]} 32. Ra8+ {[%emt 0:00:02]} Kd7 {[%emt 0:01:01]} 33. Nxc5+ {[%emt 0:00:03]} Ke7 {[%emt 0:00:01]} 34. Rxd8 {[%emt 0:00:05]} Rxd8 {[%emt 0:00:02]} 35. Bxe4 {[%emt 0:00:11]} Bxe4 {[%emt 0:00:03]} 36. dxe4 {[%emt 0:00:07]} d3 {[%emt 0:00:34]} 37. Nxd3 {[%emt 0:00:07]} Nd4 {[%emt 0:00:01]} 38. Bb4+ {[%emt 0:00:15]} Ke8 {[%emt 0:00:01]} 39. Rf2 {[%emt 0:00:10]} Bb6 {[%emt 0:00:39]} 40. Bc5 {[%emt 0:00:06]} Bxc5 {[%emt 0:00:26]} 41. Nxc5 {[%emt 0:00:02]} Ke7 1-0

[Event "Hungarian Rapid-ch 2022"]
[Site "Ajka"]
[Date "2022.07.15"]
[Round "4.8"]
[White "Hoang, Thanh Trang"]
[Black "Kozak, Adam"]
[Result "0-1"]
[ECO "D12"]
[WhiteElo "2376"]
[BlackElo "2522"]
[Annotator "ChessBase"]
[PlyCount "136"]
[EventDate "2022.07.15"]
[EventType "swiss"]
[EventCountry "HUN"]
[SourceTitle "playchess.com"]
[Source "ChessBase"]
[SourceQuality "1"]
[TimeControl "900+10"]

1. d4 {[%emt 0:00:19]} d5 {[%emt 0:00:15]} 2. Nf3 {[%emt 0:00:10]} Nf6 {[%emt 0:00:31]} 3. e3 {[%emt 0:00:15]} c6 {[%emt 0:01:07]} 4. c4 {[%emt 0:01:17]} Bf5 {[%emt 0:00:06]} 5. Nc3 {[%emt 0:00:08]} e6 {[%emt 0:00:03]} 6. Qb3 {[%emt 0:00:28]} Qb6 {[%emt 0:00:52]} 7. Be2 {[%emt 0:02:26]} Nbd7 {[%emt 0:00:30]} 8. Qxb6 {[%emt 0:00:16]} axb6 {[%emt 0:00:05]} 9. Nh4 {[%emt 0:00:40]} Be4 {[%emt 0:00:49]} 10. f3 {[%emt 0:00:22]} Bc2 {[%emt 0:01:50]} 11. g3 {[%emt 0:01:11]} dxc4 {[%emt 0:02:01]} 12. Bxc4 {[%emt 0:00:39]} b5 {[%emt 0:00:04]} 13. Kd2 {[%emt 0:01:11]} Bg6 {[%emt 0:01:39]} 14. Bb3 {[%emt 0:01:07]} Nd5 {[%emt 0:02:31]} 15. Nxd5 {[%emt 0:01:35]} exd5 {[%emt 0:00:08]} 16. Nxg6 {[%emt 0:00:08]} hxg6 {[%emt 0:00:01]} 17. e4 {[%emt 0:00:18]} dxe4 {[%emt 0:01:08]} 18. fxe4 {[%emt 0:00:04]} Nf6 {[%emt 0:00:01]} 19. Kd3 {[%emt 0:00:44]} Rd8 {[%emt 0:00:24]} 20. Bg5 {[%emt 0:00:52]} Be7 {[%emt 0:02:19]} 21. a4 {[%emt 0:01:28]} bxa4 {[%emt 0:02:00]} 22. Rxa4 {[%emt 0:00:11]} Ng4 {[%emt 0:00:13]} 23. Bxe7 {[%emt 0:00:11]} Kxe7 {[%emt 0:00:01]} 24. Rf1 {[%emt 0:00:09]} f6 {[%emt 0:00:10]} 25. h4 {[%emt 0:00:30]} Rd7 {[%emt 0:00:20]} 26. Rf4 {[%emt 0:00:46]} Nh6 {[%emt 0:00:10]} 27. Kc3 {[%emt 0:00:15]} Rhd8 {[%emt 0:00:06]} 28. d5 {[%emt 0:00:15]} c5 {[%emt 0:00:12]} 29. Bd1 {[%emt 0:00:35]} Nf7 {[%emt 0:00:09]} 30. Bg4 {[%emt 0:00:08]} Rc7 {[%emt 0:00:00]} 31. Ra7 {[%emt 0:00:10]} Nd6 {[%emt 0:00:23]} 32. Be2 {[%emt 0:00:25]} Nf7 {[%emt 0:00:07]} 33. Bg4 {[%emt 0:00:07]} Rb8 {[%emt 0:00:13]} 34. Kc2 {[%emt 0:00:21]} Kd6 {[%emt 0:00:09]} 35. Be6 {[%emt 0:00:07]} Ne5 {[%emt 0:00:00]} 36. Rf1 {[%emt 0:00:15]} Nc6 {[%emt 0:00:20]} 37. dxc6 {[%emt 0:00:13]} Kxe6 {[%emt 0:00:01]} 38. cxb7 {[%emt 0:00:11]} Rcxb7 39. Rxb7 {[%emt 0:00:13]} Rxb7 {[%emt 0:00:02]} 40. Ra1 {[%emt 0:00:02]} Ke5 {[%emt 0:00:15]} 41. Ra5 {[%emt 0:00:03]} Kd4 {[%emt 0:00:07]} 42. Ra4+ {[%emt 0:00:12]} c4 {[%emt 0:00:04]} 43. b4 {[%emt 0:00:29]} Kxe4 {[%emt 0:00:39]} 44. Kc3 {[%emt 0:00:01]} Kf3 {[%emt 0:00:01]} 45. Kxc4 {[%emt 0:00:20]} Kxg3 {[%emt 0:00:01]} 46. Kc5 {[%emt 0:00:07]} Kxh4 {[%emt 0:00:24]} 47. Kc6 {[%emt 0:00:01]} Rb8 {[%emt 0:00:12]} 48. b5+ {[%emt 0:00:02]} Kh3 {[%emt 0:00:06]} 49. Ra7 {[%emt 0:00:11]} g5 {[%emt 0:00:17]} 50. Rxg7 {[%emt 0:00:03]} Kg4 {[%emt 0:00:13]} 51. b6 {[%emt 0:00:08]} f5 {[%emt 0:00:02]} 52. Kc7 {[%emt 0:00:03]} Rf8 {[%emt 0:00:10]} 53. b7 {[%emt 0:00:39]} f4 {[%emt 0:00:01]} 54. Rd7 {[%emt 0:00:08]} f3 {[%emt 0:00:09]} 55. Rd8 {[%emt 0:00:50]} Rxd8 {[%emt 0:00:08]} 56. Kxd8 {[%emt 0:00:01]} f2 {[%emt 0:00:02]} 57. b8=Q {[%emt 0:00:02]} f1=Q {[%emt 0:00:02]} 58. Ke7 {[%emt 0:00:08]} Qf4 {[%emt 0:00:32]} 59. Qc8+ {[%emt 0:00:09]} Kh4 {[%emt 0:00:13]} 60. Qh8+ {[%emt 0:00:06]} Kg4 {[%emt 0:00:07]} 61. Qc8+ {[%emt 0:00:03]} Kf3 {[%emt 0:00:02]} 62. Qh3+ {[%emt 0:00:07]} Kf2 {[%emt 0:00:11]} 63. Ke6 {[%emt 0:00:23]} g4 {[%emt 0:00:17]} 64. Qh4+ {[%emt 0:00:02]} Kg2 {[%emt 0:00:01]} 65. Qe1 {[%emt 0:00:14]} g3 {[%emt 0:00:22]} 66. Qe2+ {[%emt 0:00:06]} Kh3 {[%emt 0:00:12]} 67. Qh5+ {[%emt 0:00:06]} Qh4 {[%emt 0:00:12]} 68. Qf3 {[%emt 0:00:02]} Qg4+ {[%emt 0:00:01]} 0-1

[Event "Hungarian Rapid-ch 2022"]
[Site "Ajka"]
[Date "2022.07.15"]
[Round "4.9"]
[White "Leviczky, Tibor"]
[Black "Vertetics, Attila"]
[Result "1/2-1/2"]
[ECO "E41"]
[WhiteElo "2281"]
[BlackElo "2465"]
[Annotator "ChessBase"]
[PlyCount "36"]
[EventDate "2022.07.15"]
[EventType "swiss"]
[EventCountry "HUN"]
[SourceTitle "playchess.com"]
[Source "ChessBase"]
[SourceQuality "1"]
[TimeControl "900+10"]

1. d4 {[%emt 0:00:12]} Nf6 {[%emt 0:00:11]} 2. c4 {[%emt 0:00:02]} e6 {[%emt 0:00:01]} 3. Nc3 {[%emt 0:00:23]} Bb4 {[%emt 0:00:03]} 4. e3 {[%emt 0:00:08]} c5 {[%emt 0:00:03]} 5. Bd3 {[%emt 0:00:38]} Nc6 {[%emt 0:00:20]} 6. Nge2 {[%emt 0:00:48]} d5 {[%emt 0:01:42]} 7. O-O {[%emt 0:00:47]} dxc4 {[%emt 0:01:31]} 8. Bxc4 {[%emt 0:00:03]} cxd4 {[%emt 0:00:03]} 9. exd4 {[%emt 0:00:18]} O-O {[%emt 0:00:03]} 10. Bg5 {[%emt 0:00:56]} Be7 {[%emt 0:00:23]} 11. a3 {[%emt 0:00:31]} b6 {[%emt 0:00:41]} 12. Qd3 {[%emt 0:01:02]} Bb7 {[%emt 0:00:33]} 13. Rad1 {[%emt 0:00:14]} Nd5 {[%emt 0:00:08]} 14. Bxd5 {[%emt 0:01:15]} exd5 {[%emt 0:02:09]} 15. Bxe7 {[%emt 0:00:11]} Nxe7 {[%emt 0:00:02]} 16. Nf4 {[%emt 0:00:28]} Ng6 {[%emt 0:00:35]} 17. Nxg6 {[%emt 0:00:19]} hxg6 {[%emt 0:00:02]} 18. Rfe1 {[%emt 0:00:28]} Re8 {[%emt 0:00:16]} 1/2-1/2